{"text_format":"1","workbook":"xlsx","n_sheets":2,"sheets":["Bila_D","Bilanzanalyse"],"not_rendered":{"charts":0,"images":0,"macros":0,"external_links":0,"defined_names":1,"comments":0,"pivot_tables":0},"unopened":[],"bounds":{"document_bytes":16777216,"sheet_cells":100000,"rows_first":2000,"rows_last":500,"rows_between":2000,"halvings":0,"cell_chars":16384,"cell_head_chars":4096},"cells_cut":0,"cells_raw":0,"read":"whole","date_system":"1900"}

{"sheet":"Bila_D","index":0,"n_rows":59,"n_cols":4,"rows_kept":59,"cut":false,"hidden":false,"merged":[]}
[]
[null,"Konzern-Bilanz (IFRS)"]
[null,"zum 31. März 2016"]
[null,null,"2016-03-31","2015-09-30"]
[null,null,"Tsd. €","Tsd. €"]
[null,"AKTIVA"]
[null,"Langfristige Vermögenswerte"]
[null,"    Geschäfts- oder Firmenwert",163707,164345]
[null,"    Sonstige immaterielle Vermögenswerte",47031,45365]
[null,"    Sachanlagen",64713,67381]
[null,"    At-Equity Beteiligungen",0,0]
[null,"    Ausleihungen an At-Equity Beteiligungen",0,0]
[null,"    Sonstige Ausleihungen",2128,1349]
[null,"    Beteiligungen",124,124]
[null,"    Latente Ertragsteuern",78573,72985]
[null,"    Langfristige Forderungen aus Lieferungen und Leistungen",8943,8919]
[null,"    Sonstige langfristige Vermögenswerte",2706,2524]
[null,null,{"$f":"+SUM(C8:C17)","v":367925},{"$f":"+SUM(D8:D17)","v":362992}]
[null,"Kurzfristige Vermögenswerte"]
[null,"    Vorräte",201650,189411]
[null,"    Forderungen aus Lieferungen und Leistungen",173766,184817]
[null,"    Forderungen gegen nahe stehende Unternehmen",71716,58900]
[null,"    Forderungen aus Finanzausgleich",332656,301412]
[null,"    Steuererstattungsansprüche",2275,2224]
[null,"    Sonstige kurzfristige finanzielle Vermögenswerte",10437,7336]
[null,"    Sonstige kurzfristige nicht-finanzielle Vermögenswerte",17523,19157]
[null,"    Zahlungsmittel und Zahlungsmitteläquivalente",6760,13041]
[null,null,{"$f":"+SUM(C20:C27)","v":816783},{"$f":"+SUM(D20:D27)","v":776298}]
[null,null,{"$f":"+C28+C18","v":1184708},{"$f":"+D28+D18","v":1139290}]
[null,"PASSIVA"]
[null,"Eigenkapital"]
[null,"    Gezeichnetes Kapital",81310,81310]
[null,"    Kapitalrücklage",313863,313863]
[null,"    Gewinnrücklagen",438898,390903]
[null,"    Sonstige Bestandteile des Eigenkapitals",-42971,-32218]
[null,"    Eigenkapital ohne Anteile nicht-beherrschender Gesellschafter",{"$f":"+SUM(C32:C35)","v":791100},{"$f":"+SUM(D32:D35)","v":753858}]
[null,"    Ausgleichsposten für Anteile nicht-beherrschender Gesellschafter",47207,43592]
[null,null,{"$f":"+C36+C37","v":838307},{"$f":"+D36+D37","v":797450}]
[null,"Langfristige Schulden"]
[null,"    Pensionsrückstellungen und ähnliche Verpflichtungen",81675,64865]
[null,"    Andere langfristige Rückstellungen",4542,4467]
[null,"    Langfristige finanzielle Verbindlichkeiten",1188,916]
[null,"    Langfristige Leasingverbindlichkeiten",7595,8929]
[null,"    Sonstige langfristige nicht-finanzielle Verbindlichkeiten",6314,7490]
[null,"    Latente Ertragsteuern",11044,11783]
[null,null,{"$f":"+SUM(C40:C45)","v":112358},{"$f":"+SUM(D40:D45)","v":98450}]
[null,"Kurzfristige Schulden"]
[null,"    Kurzfristige Rückstellungen",22210,24360]
[null,"    Kurzfristige abgegrenzte Verbindlichkeiten",68116,65447]
[null,"    Kurzfristige finanzielle Verbindlichkeiten",8752,3707]
[null,"    Kurzfristiger Anteil langfristiger Leasingverbindlichkeiten",2796,2806]
[null,"    Verbindlichkeiten aus Lieferungen und Leistungen",39983,42859]
[null,"    Kurzfristige Verbindlichkeiten aus Ertragsteuern",10979,6214]
[null,"    Verbindlichkeiten gegenüber nahe stehenden Unternehmen",16480,23454]
[null,"    Verbindlichkeiten aus Finanzausgleich",31918,36043]
[null,"    Sonstige kurzfristige nicht-finanzielle Verbindlichkeiten",32809,38500]
[null,null,{"$f":"+SUM(C48:C56)","v":234043},{"$f":"+SUM(D48:D56)","v":243390}]
[null,null,{"$f":"+C38+C46+C57","v":1184708},{"$f":"+D38+D46+D57","v":1139290}]
[null,"Der nachfolgende Konzernanhang ist integraler Bestandteil des ungeprüften Konzernabschlusses."]

{"sheet":"Bilanzanalyse","index":1,"n_rows":14,"n_cols":5,"rows_kept":14,"cut":false,"hidden":true,"merged":[[0,0,0,1]]}
["Abw. Dec./ Sep",null,"Begründung","davon\n erklärt","Differenz"]
[{"$f":"#REF!","v":{"$error":"#REF!"}},"Geschäfts- oder Firmenwert","Zugang IMEX 7,432 Mio.",{"$f":"7432","v":7432},{"$f":"A2-D2","v":{"$error":"#REF!"}}]
[{"$f":"#REF!","v":{"$error":"#REF!"}},"Immaterielle Vermögenswerte","Zugang IMEX 5,551 Mio."]
[{"$f":"#REF!","v":{"$error":"#REF!"}},"Sachanlagen","Zugang CZM AG 4,0 Mio. vor Afa (hauptsächlich Olymp ca. 3,2 Mio.); Übernahme Mietgeräte bei CZM VG aus Umlaufvermögen (+1,2 Mio.)"]
[{"$f":"#REF!","v":{"$error":"#REF!"}},"Forderungen aus Lieferungen und Leistungen","hierin enthalten 2,9 Mio. Alcon-Lizenzen, Cash-Zahlung erfolgt erst im Januar"]
[{"$f":"#REF!","v":{"$error":"#REF!"}},"Forderungen gegen nahe stehende Unternehmen","v.a. Umsatzanstieg Q1 CZM AG (Umsatz je Quartal: GJ 10/11 --> 113 Mio., Q1 11/12 --> 141 Mio.)  "]
[{"$f":"#REF!","v":{"$error":"#REF!"}},"Sonstige kurzfristige finanzielle Vermögenswerte","Anstieg aus CZM Inc. aufgrund der Umgliederung der Kreditkartenforderungen von kurzf. Nicht-finanz. Vw in kurzf. Finanz. Vermögenswerte (+1,3 Mio.). Anstieg CZM AG (+0,3 Mio.) für Zinsabgrenzungen (COBA + HVB)",{"$f":"1300+300","v":1600},{"$f":"A7-D7","v":{"$error":"#REF!"}}]
[{"$f":"#REF!","v":{"$error":"#REF!"}},"Sonstige kurzfristige nicht-finanzielle Vermögenswerte","Kompensation des Umgliederungseffektes USA durch CZM F (+0,6 Mio., u.a. UST, ARAP), CZM AG (+0,4 Mio.) "]
[1207,"Andere langfristige Rückstellungen","IMEX earn out Anteil +2,218 Mio.; Kompensation durch CZM AG (-915 TEUR ATZ, -142 TEUR Verbrauch ERA RST und sonstiges)",{"$f":"(2.218-0.915-0.142)*1000","v":1161},46]
[{"$f":"#REF!","v":{"$error":"#REF!"}},"Kurzfristige Rückstellungen","IMEX earn out Anteil +2,149 Mio., Abgrenzung KöSteuer +1,5 Mio. (CZM AG), RST für Gewährleistungen pauschal +0,55 Mio. (CZM AG), Konzernrückstellung Q1 für Projekttehmen +0,85 Mio., Auflösung RST für Bonuszahlung im Dezember + RST-Bildung für geschätzte Logistikosten (CZM Japan), Zuführung RST CZM Inc. für Ferien, Warenrückgabe und Gewährleistung",{"$f":"(2.149+1.5+0.55+0.85)*1000","v":5048.9999999999991},{"$error":"#REF!"}]
[{"$f":"#REF!","v":{"$error":"#REF!"}},"Kurzfristige abgegrenzte Verbindlichkeiten","Auszahlung Renumeration für FY 10/11 CZM VG -0,8 Mio. (hier auch Reduzierung RST für ausstehende Rechnung enthalten) und USA -3,1 Mio. (u.a. MBO-Bonus, Super-Bonus); z.T. Kompensation/ Anstieg durch unterjährige Rechnungsabgrenzungen + Risiken CZM AG +1,36 Mio. (davon 0,6 Mio. Konzern-RST bzw. 0,3 Mio. CZM-Verbundene, die im Konzern wieder eliminiert werden); CZM SAS + FCI -04 Mio. Rückgang Personalverbindlichkeiten aufgrund erfolgter Bonuszahlung im Dez 11",{"$f":"(-0.8-3.1+1.36-0.3-0.4)*1000","v":-3239.9999999999995},{"$error":"#REF!"}]
[{"$f":"#REF!","v":{"$error":"#REF!"}},"Kurzfristige finanzielle Verbindlichkeiten","Devisentermingeschäfte CZM AG +3,3 Mio. EUR, Reduzierung ausstehende Checks USA aufgrund von Lieferantenzahlungen -0,6 Mio.",{"$f":"(3.3-0.6)*1000","v":2699.9999999999995},{"$error":"#REF!"}]
[{"$f":"#REF!","v":{"$error":"#REF!"}},"Verbindlichkeiten aus Lieferungen und Leistungen","CZM AG: Umstellung Lieferantenzahlungen auf tägliche Zahlungen nach Fälligkeit ab Q1 2012 (-3,9 Mio.)"]
[{"$f":"#REF!","v":{"$error":"#REF!"}},"Sonstige kurzfristige nicht-finanzielle Verbindlichkeiten","CZM AG: Lohnsteuerverbindlichkeiten +2,0 Mio. (Prämienzahlung 31.12.) , Lizenzen Alcon +2,2 Mio. Erhaltene Anzahlungen -1,0 Mio.,\nCZM VG: Erhöhung \"erhaltene Anzahlungen\" und Lohnsteuerverbindlichkeiten zum 31.12. (+0,6 Mio.)\nCZM Inc: Service-RST (+0,5 Mio.), abgegrenzter Service-Ertrag (+0,4 Mio.)\nCZM Japan: Bonuszahlung Dez 11 (+0,4 Mio.), Kundenvorauszahlungen OPMI Lumera + Vario (+0,5 Mio.), U-Anteil soziale Sicherheit (+0,2 Mio.)\nCZM Spanien: abgegrenter Ertrag (+0,3 Mio.) ",{"$f":"(2+2.2-1+0.6+0.5+0.4+0.4+0.5+0.2+0.3)*1000","v":6100.0000000000018},{"$error":"#REF!"}]